Cogmind - Beta 17.1 @@@ ROGUE MODE // 2026.08.31 @ 03:51:18 Player: 4R-ZE3 Result: Destroyed by S-43 Plague with Heavy Machine Gun Performance ------------- Evolutions (7) 3500 Regions Visited (21) 4200 Robots Destroyed (234) 1170 Value Destroyed (9599) 9599 Prototype IDs (59) 1180 Alien Tech Used (0) 0 Bonus (7304) 7304 TOTAL SCORE: 26953 Bonus ------- High Alert Combat Kills 390 Follower Combat Kills 2100 Met Data Miner 300 Met Warlord at Base 500 MAIN.C Attacked Warlord 500 Warlord Defense Kills 94 MAIN.C Attacked Proxy Base 500 Built Enhanced Grunts 300 A7 Reached Mainframe 300 Met R17 at Cetus 500 Met R17 at Research 2000 Friendly Fire -180 Cogmind --------- Core Integrity 0/1300 Matter 300/300 Energy 90/100 System Corruption 0% Temperature Cool (0) Movement Core (50) Location -3/Research Parts ------- > --- POWER (3) -------- (None) > --- PROPULSION (6) --- (None) > --- UTILITY (8) ------ (None) > --- WEAPON (4) ------- (None) > --- INVENTORY (5) ---- Advanced Cryofiber Web Huge Storage Unit Improved Phase Shifter Layered Heavy Armor Plating Peak State ------------ > --- POWER ------------ Vortex Chain Reactor > --- PROPULSION ------- Centrium Heavy Treads Centrium Heavy Treads Centrium Heavy Treads > --- UTILITY ---------- Experimental Cooling System Huge Storage Unit Experimental Optical Array Improved Signal Interpreter Advanced Transmission Jammer Layered Medium Armor Plating Experimental Thermal Shield Advanced Remote Force Field > --- WEAPON ----------- Advanced Variable Charge Gun Advanced Variable Charge Gun Advanced Variable Charge Gun > --- INVENTORY -------- Quantum Reactor Quantum Reactor Quantum Reactor Quantum Reactor Centrium Heavy Treads Centrium Heavy Treads Advanced Power Amplifier Experimental Heat Sink Advanced Cooling System Makeshift Trap Scanner Makeshift Sensor Array Improved Particle Charger Quantum Capacitor Graphene Brace Experimental Focal Shield Improved Component Analysis Suite Improved System Restoration Module Heavy Tesla Rifle Gamma Rifle Advanced Variable Charge Gun Heavy Neutron Cannon Vortex Cannon [Rating: 166] Favorites ----------- Power Improved Deuterium Engine Engine Improved Deuterium Engine Power Core Fission Core Reactor Light Antimatter Reactor Propulsion Light Treads Treads Light Treads Leg Carbon-fiber Leg Hover Unit Antigrav System Flight Unit Xenon Bombardment Thruster Utility Huge Storage Unit Device Makeshift Sensor Array Storage Huge Storage Unit Processor Improved Signal Interpreter Hackware Advanced Hacking Suite Protection Layered Medium Armor Plating Weapon Advanced Variable Charge Gun Energy Gun Advanced Variable Charge Gun Energy Cannon Heavy Ion Cannon Ballistic Gun Assault Rifle Launcher Heavy Missile Launcher Special Weapon Improved Plasma Cutter Slashing Weapon Makeshift Sword Build | -11 -10 -10 -10 -9 -8 -7 -7 -7 -7 -6 -6 -6 -6 -5 -5 -5 -4 -4 -4 -4 -3 ------- Run | Yrd Mat Min Exi Min Mat Fac Low Low Dat Pro Fac Ext Cet Fac Upp War Pro Fac Upp Upp Res Slots Evolved 14 | . . . . . 4 2 . . . . 2 . . 2 . . . 2 . . 2 Power 2 | . . . . . . 1 . . . . . . . . . . . . . . 1 Propulsion 4 | . . . . . 1 . . . . . 1 . . 2 . . . . . . . Utility 6 | . . . . . 2 1 . . . . 1 . . . . . . 2 . . . Weapon 2 | . . . . . 1 . . . . . . . . . . . . . . . 1 Parts Attached 186 | 6 6 1 2 3 12 24 1 6 . 26 . 39 11 4 1 11 3 15 1 1 13 Power 24 | 1 . . . 1 2 3 . 1 . 4 . 6 3 . . 1 . 1 . . 1 Engine 12 | 1 . . . 1 1 2 . 1 . 1 . 5 . . . . . . . . . Core 4 | . . . . . 1 1 . . . 1 . 1 . . . . . . . . . Reactor 8 | . . . . . . . . . . 2 . . 3 . . 1 . 1 . . 1 Propulsion 49 | 2 . . . 2 1 7 . 2 . 6 . 18 4 . . . . 1 . . 6 Treads 41 | 2 . . . 2 1 7 . 2 . 6 . 16 4 . . . . 1 . . . Leg 4 | . . . . . . . . . . . . 2 . . . . . . . . 2 Wheel . | . . . . . . . . . . . . . . . . . . . . . . Hover 1 | . . . . . . . . . . . . . . . . . . . . . 1 Flight 3 | . . . . . . . . . . . . . . . . . . . . . 3 Utility 56 | 1 2 1 1 . 4 9 . 1 . 6 . 4 . 3 1 7 3 9 1 . 3 Device 35 | . 1 1 . . 2 6 . . . 5 . 1 . . 1 5 1 8 1 . 3 Storage 4 | 1 1 . 1 . . . . . . . . . . 1 . . . . . . . Processor 6 | . . . . . . 3 . . . . . . . 1 . 2 . . . . . Hackware 1 | . . . . . . . . . . . . . . . . . . 1 . . . Protection 10 | . . . . . 2 . . 1 . 1 . 3 . 1 . . 2 . . . . Artifact . | . . . . . . . . . . . . . . . . . . . . . . Weapon 57 | 2 4 . 1 . 5 5 1 2 . 10 . 11 4 1 . 3 . 4 . 1 3 Energy Gun 33 | 1 1 . . . 2 2 . 1 . 7 . 11 4 . . . . 3 . 1 . Energy Cannon 15 | . 2 . . . 3 3 . 1 . 1 . . . 1 . 2 . 1 . . 1 Ballistic Gun 3 | 1 . . . . . . . . . . . . . . . . . . . . 2 Ballistic Cannon . | . . . . . . . . . . . . . . . . . . . . . . Launcher 4 | . 1 . . . . . 1 . . 1 . . . . . 1 . . . . . Special Weapon 1 | . . . . . . . . . . 1 . . . . . . . . . . . Impact Weapon . | . . . . . . . . . . . . . . . . . . . . . . Slashing Weapon 1 | . . . 1 . . . . . . . . . . . . . . . . . . Piercing Weapon . | . . . . . . . . . . . . . . . . . . . . . . Special Melee Weapon . | . . . . . . . . . . . . . . . . . . . . . . Unidentified Prototypes 22 | . . 1 . . 1 4 . . . 2 . . 2 1 . 10 . . . . 1 Corrupted Parts 7 | . . . . . . . . . . . . . 6 . . . . . . 1 . System Corruption 24 | . . . . . . . . . . . . . 15 . . . . . . 9 . Parts Lost 80 | . . . . 4 1 4 . 7 . 5 . 24 . . . . 1 25 . . 9 Power 16 | . . . . 1 . 2 . 2 . 1 . 5 . . . . . 4 . . 1 Propulsion 22 | . . . . 2 . 2 . 2 . 1 . 8 . . . . . 5 . . 2 Utility 20 | . . . . . 1 . . 1 . 1 . 4 . . . . 1 10 . . 2 Weapon 22 | . . . . 1 . . . 2 . 2 . 7 . . . . . 6 . . 4 Highest Loss Streak 15 | . . . . 3 1 2 . 5 . 4 . 15 . . . . 1 8 . . 4 To Critical Strikes 2 | . . . . . . 1 . 1 . . . . . . . . . . . . . Average Backups 20 | . 9 13 16 17 18 24 25 23 24 24 23 23 23 22 23 22 22 19 5 4 4 Power 1 | . 1 1 1 . . . . . . . . 1 2 2 2 3 4 3 1 . . Propulsion 4 | . 4 7 7 5 6 5 5 3 4 5 5 4 3 2 2 2 2 1 . . . Utility 7 | . . 1 3 5 5 5 6 7 8 8 8 7 7 10 11 12 12 10 4 3 3 Weapon 7 | . 3 3 5 6 5 12 13 11 11 8 9 7 9 7 8 4 4 3 . . . Tool/Special . | . . . . . . . . . . . . . . . . . . . . . . Unused Backups 67 | . 3 . . . 3 11 1 . . 10 . 14 8 . . 8 . 6 . . 3 Power 5 | . 1 . . . . . . . . . . 1 3 . . . . . . . . Propulsion 12 | . . . . . 2 . . . . . . 9 1 . . . . . . . . Utility 17 | . . . . . . 1 . . . 5 . 1 . . . 3 . 4 . . 3 Weapon 32 | . 2 . . . 1 10 1 . . 4 . 3 4 . . 5 . 2 . . . Tool/Special 1 | . . . . . . . . . . 1 . . . . . . . . . . . Average Slot Usage (%) 90 | . 97 100 100 95 87 99 100 96 92 99 97 95 90 82 82 79 76 74 2 6 18 Engine 8 | . 14 14 14 14 6 13 15 12 7 7 6 7 6 . . . . . . . . Reactor 2 | . . . . . . . . . . 6 6 . 5 11 11 8 5 5 . . 1 Treads 21 | . 28 28 28 28 23 22 23 23 23 22 25 22 17 17 17 17 17 13 . . . Device 14 | . 11 14 14 14 9 14 15 14 15 14 13 16 13 15 17 16 16 20 2 5 5 Storage 7 | . 14 14 14 14 9 7 7 7 7 7 6 6 6 5 5 5 5 4 . . . Processor 9 | . . . . . . 14 15 15 15 15 13 10 6 5 5 9 11 9 . . . Protection 1 | . . . . . 9 . . . . . 5 5 13 6 5 1 . 4 . . . Energy Gun 12 | . 20 28 21 9 7 . . 1 7 18 13 17 19 17 17 16 17 13 . 1 1 Energy Cannon 7 | . 3 . . . 14 22 22 20 15 3 5 . . . . . . . . . . Peak Build Rating 166 | 6 10 14 14 14 31 54 54 51 45 61 69 69 116 136 138 153 151 166 9 23 64 Average Rating 63 | 4 7 8 11 12 21 48 53 48 45 57 67 59 93 134 137 145 149 150 6 11 25 On Entrance 53 | . 6 8 9 14 10 31 54 51 45 45 59 69 64 116 135 138 150 147 3 9 11 Avg Prop Armor Cover (%) 6 | . . . . . . . . . . . . 5 17 . . . . . . . 7 Naked Turns 199 | . . . . . . . . . . . . . . . . . . 36 102 . 61 Heaviest Build 176 | 12 92 87 88 48 115 131 130 128 113 127 138 140 152 152 154 167 156 176 2 2 42 Greatest Support 240 | 40 40 40 40 40 60 68 68 68 60 68 90 90 160 240 240 240 240 240 3 3 50 Greatest Overweight (x) 50 | 3 2 2 2 1 1 2 1 2 1 2 1 6 50 . . . . 1 . . 4 Average Overweight (x) . | . 1 2 1 1 . 1 1 1 1 1 1 1 . . . . . . . . . Largest Inventory Capacity 25 | 8 25 25 25 20 25 25 25 25 25 25 25 25 25 25 25 25 25 25 5 5 5 Average Capacity 23 | 7 20 25 24 20 23 25 25 25 25 25 25 25 25 25 25 25 25 24 5 5 5 Most Carried 25 | 2 14 14 19 19 25 25 25 25 25 25 25 25 25 25 25 25 25 25 5 5 5 Average Carried 21 | . 10 13 16 17 18 24 24 24 25 24 23 23 24 24 25 24 24 22 5 4 4 Final Capacity 25 | 8 25 25 20 20 25 25 25 25 25 25 25 25 25 25 25 25 25 5 5 5 5 Final Carried 25 | 2 12 14 19 16 25 25 25 25 25 25 24 25 25 25 25 25 24 5 5 5 5 Class Distribution -------------------- 22% | Skirmisher 22% | Scavenger-Skirmisher 21% | Mutant 13% | Scavenger-Tank 6% | Commander-Tank 6% | Scavenger-Gunner Dominant Class ---------------- Mutant | -10/Materials Mutant | -10/Mines Mutant | -10/Exiles Commander-Mutant | -9/Mines Scavenger-Tank | -8/Materials Skirmisher | -7/Factory Skirmisher | -7/Lower Caves Skirmisher | -7/Lower Caves Skirmisher | -7/Data Miner Scavenger-Skirmisher | -6/Proximity Caves Scavenger-Skirmisher | -6/Factory Scavenger-Skirmisher | -6/Extension Commander-Tank | -6/Cetus Scavenger-Tank | -5/Factory Commander-Tank | -5/Upper Caves Commander-Tank | -5/Warlord Scavenger-Skirmisher | -4/Proximity Caves Scavenger-Tank | -4/Factory Mutant | -4/Upper Caves Mutant | -4/Upper Caves Mutant | -3/Research Resources | -11 -10 -10 -10 -9 -8 -7 -7 -7 -7 -6 -6 -6 -6 -5 -5 -5 -4 -4 -4 -4 -3 ----------- Run | Yrd Mat Min Exi Min Mat Fac Low Low Dat Pro Fac Ext Cet Fac Upp War Pro Fac Upp Upp Res Matter Collected 4793 | 252 195 20 10 38 303 550 79 351 . 713 37 448 135 99 . 312 105 909 . 53 184 Remotely . | . . . . . . . . . . . . . . . . . . . . . . Salvage Created 10321 | . 515 20 307 17 728 1393 253 664 . 1440 114 1130 173 122 . 65 343 2820 . 70 147 Parts 423 | . 33 3 6 . 45 74 12 15 . 36 6 37 7 4 . 4 7 124 . 3 7 Haulers Intercepted 7 | . 2 . . . 3 1 . . . 1 . . . . . . . . . . . Recyclers Shooed 5 | . . . . . . . . 1 . . . . . . . . . 3 . . 1 Parts Field Recycled . | . . . . . . . . . . . . . . . . . . . . . . Retrieved Matter . | . . . . . . . . . . . . . . . . . . . . . . Parts Self-Destructed 90 | . . . . . . . 5 20 . 51 . . . . . . 12 . . 2 . Prevented 70 | . . . . . . . . . . 63 . . . . . . 2 . . 5 . Parts Restored . | . . . . . . . . . . . . . . . . . . . . . . Kills | -11 -10 -10 -10 -9 -8 -7 -7 -7 -7 -6 -6 -6 -6 -5 -5 -5 -4 -4 -4 -4 -3 ------- Run | Yrd Mat Min Exi Min Mat Fac Low Low Dat Pro Fac Ext Cet Fac Upp War Pro Fac Upp Upp Res Combat Hostiles Destroyed 193 | . 15 . . 1 11 30 6 13 . 27 4 23 2 2 . 1 5 47 . 1 5 Melee 4 | . . . . . 4 . . . . . . . . . . . . . . . . Guns 79 | . 12 . . 1 . . . . . 8 . 16 2 2 . . 5 30 . 1 2 Cannons 69 | . . . . . 7 28 . 10 . 6 3 . . . . . . 14 . . 1 AOE 27 | . 3 . . . . . 6 3 . 8 . 4 . . . . . 1 . . 2 Classes Destroyed 20 | . 5 . . . 4 1 1 1 . 1 1 2 . . . . . 4 . . . Worker 12 | . 2 1 . . 2 3 . . . . . 1 . . . . . 3 . . . Builder 5 | . . . . . 2 . . . . . . 1 . . . . . 2 . . . Hauler 7 | . 2 . . . 3 1 . . . 1 . . . . . . . . . . . Recycler 6 | . . . . . 1 1 . . . . . . . . . . . 4 . . . Minesweeper 1 | . . . . . . . . 1 . . . . . . . . . . . . . Operator 3 | . . . . . . . . . . . 1 1 . . . . . 1 . . . Watcher 7 | . 1 . . . . . . . . . . . 1 . . . . 5 . . . Swarmer 67 | . 8 . . . 4 13 4 3 . 5 4 8 . . . . . 13 . . 5 Cutter 3 | . . . . . . . . . . . . . . . . . . 3 . . . Grunt 56 | . 7 . . . 4 8 1 9 . 17 . 1 . . . . 4 4 . 1 . Brawler 3 | . . . . . . . . . . . . 3 . . . . . . . . . Duelist 1 | . . . . . . . . . . . . . . . . . . 1 . . . Protector 2 | . . . . . . . . . . 1 . . . . . 1 . . . . . Sentry 21 | . . . . . 2 4 1 1 . 2 . 8 . 1 . . 1 1 . . . Specialist 2 | . . . . . . . . . . . . . . . . . . 2 . . . Hunter 15 | . . . . . 1 1 . . . 2 . 1 . . . . . 10 . . . Programmer 16 | . . . . . . 4 . . . . . . . 1 . . . 11 . . . Heavy 2 | . . . . . . . . . . . . . . . . . . 2 . . . Behemoth 2 | . . . . . . . . . . . . 2 . . . . . . . . . Cetus Guard 2 | . . . . . . . . . . . . . 2 . . . . . . . . Decomposer 1 | . . . . . . . . 1 . . . . . . . . . . . . . Packrat 3 | . . . . . . . . 3 . . . . . . . . . . . . . Samaritan 3 | . . . . . . . 3 . . . . . . . . . . . . . . Best Kill Streak 12 | . 4 1 . 1 5 7 3 6 . 5 4 5 3 1 . 1 3 12 . 1 3 Combat Bots Only 8 | . 3 . . 1 4 5 3 6 . 5 4 4 2 1 . 1 3 8 . 1 3 Max Kills in Single Turn 3 | . 2 1 . 1 2 2 3 2 . 3 1 3 1 1 . 1 1 3 . 1 2 Gunslinging 1 | . . . . . . . . . . 1 . 1 . . . . . 1 . . . Exploded 3 | . 2 . . . . . 3 2 . 3 . 3 . . . . . 1 . . 2 Melee 1 | . . . . . 1 . . . . . . . . . . . . . . . . Uniques/NPCs Destroyed 1 | . . . . 1 . . . . . . . . . . . . . . . . . YI-UF0 (-9/Mines) Combat | -11 -10 -10 -10 -9 -8 -7 -7 -7 -7 -6 -6 -6 -6 -5 -5 -5 -4 -4 -4 -4 -3 -------- Run | Yrd Mat Min Exi Min Mat Fac Low Low Dat Pro Fac Ext Cet Fac Upp War Pro Fac Upp Upp Res Hostile Shots Fired 1829 | . 71 . . 7 52 138 32 73 . 135 40 359 12 16 . 32 60 592 . 8 202 Missed 538 | . 14 . . 3 10 47 12 25 . 52 12 117 5 9 . 7 14 135 . 2 74 Hits 1291 | . 57 . . 4 42 91 20 48 . 83 28 242 7 7 . 25 46 457 . 6 128 Melee 26 | . . . . . . . . . . . . . . . . . . 21 . . 5 Projectile 1265 | . 57 . . 4 42 91 20 48 . 83 28 242 7 7 . 25 46 436 . 6 123 AOE 9 | . . . . 3 . . . . . . . . . . . 5 . 1 . . . Critical Strikes 47 | . 1 . . . 1 3 . 5 . . . 2 2 1 . . 3 25 . 1 3 Actively Blocked 12 | . . . . . . . . . . . . . . . . . . 12 . . . Part Disruptions 1 | . . . . . . . . . . . . . . . . . . 1 . . . Damage Taken 18631 | . 606 . . 109 648 1061 247 775 . 1487 419 3165 208 136 . 386 824 6298 . 80 2182 Core 3182 | . 116 . . 8 88 44 16 65 . 89 29 301 . . . 49 46 979 . 52 1300 Absorbed by Shields 1328 | . . . . . . . . . . . . 138 24 . . 290 . 831 . . 45 Reduced by Siege Mode 675 | . . . . . . . . . . . . . . . . . 113 562 . . . Redirected to Shielding 19 | . . . . . 19 . . . . . . . . . . . . . . . . Ignored by Resistances 1411 | . . . . . . . . . . . . 48 . 4 . . 98 1231 . 30 . Regen/Repaired (Parts) 64 | . . . . . . . . . . 58 . . . . . 6 . . . . . Core Remaining (%) 66 | 100 . . . 50 84 . . . . 69 . . 61 . . . 90 . . 10 . Volleys Fired 691 | . 60 2 . 1 25 71 18 31 . 87 21 53 15 6 . 7 23 238 . 6 27 Largest 3 | . 2 2 . 1 3 3 3 3 . 3 1 3 3 3 . 3 3 3 . 1 2 Hottest 270 | . 112 90 . 20 210 210 169 170 . 234 90 236 221 240 . 240 240 270 . 63 93 Shots Fired 1366 | . 117 4 . 1 63 195 34 84 . 158 21 141 32 16 . 14 65 385 . 6 30 Gun 820 | . 112 4 . 1 12 . . 4 . 74 . 139 32 16 . 14 65 316 . 6 25 Cannon 517 | . 3 . . . 51 195 23 76 . 74 21 . . . . . . 69 . . 5 Launcher 29 | . 2 . . . . . 11 4 . 10 . 2 . . . . . . . . . Special . | . . . . . . . . . . . . . . . . . . . . . . Kinetic 47 | . 29 . . 1 4 . . . . . . . . . . . . . . . 13 Thermal 1240 | . 83 4 . . 59 195 23 80 . 148 21 135 32 16 . 14 65 347 . 6 12 Explosive 29 | . 2 . . . . . 11 4 . 10 . 2 . . . . . . . . . Electromagnetic 27 | . 3 . . . . . . . . . . 4 . . . . . 15 . . 5 Entropic 23 | . . . . . . . . . . . . . . . . . . 23 . . . Robot Hit Streak 31 | . 11 4 . 5 10 18 12 11 . 28 8 31 11 2 . 7 21 29 . 5 6 Robot Miss Streak 9 | . 5 . . . 3 4 1 4 . 9 2 5 2 1 . 1 3 5 . 3 3 Penetration Max . | . . . . . . . . . . . . . . . . . . . . . . Secondary Targets 19 | . . . . . . . . . . 2 . 6 1 . . . 2 8 . . . Max Gunslinging Chain 2 | . . . . . . . . . . 1 . 2 1 . . . 1 2 . . . Capacitor 9 | . . . . . . . . . . . . . . . . . . 9 . . . Shots Hit Robots 808 | . 76 1 21 1 50 93 16 58 . 74 8 107 26 7 . 9 34 203 . 5 19 Core Hits 425 | . 28 1 8 1 20 46 17 32 . 70 4 66 11 3 . 5 12 89 . 2 10 Critical Kills 3 | . . . . . . 2 . . . . 1 . . . . . . . . . . Critical Parts Destroyed . | . . . . . . . . . . . . . . . . . . . . . . Critical Strikes 29 | . 1 . . . . 2 . . . 4 1 7 4 . . . . 9 . 1 . Burn 15 | . 1 . . . . . . . . 2 . 7 4 . . . . . . 1 . Meltdown 3 | . . . . . . 2 . . . . 1 . . . . . . . . . . Sever 2 | . . . . . . . . . . 2 . . . . . . . . . . . Sunder 9 | . . . . . . . . . . . . . . . . . . 9 . . . Melee Attacks 45 | . . . 21 . 20 1 . . . 3 . . . . . . . . . . . Impact . | . . . . . . . . . . . . . . . . . . . . . . Slashing 45 | . . . 21 . 20 1 . . . 3 . . . . . . . . . . . Piercing . | . . . . . . . . . . . . . . . . . . . . . . Sneak Attacks 7 | . . . . . 7 . . . . . . . . . . . . . . . . Combat Hostiles . | . . . . . . . . . . . . . . . . . . . . . . Follow-up Attacks . | . . . . . . . . . . . . . . . . . . . . . . Damage Inflicted 28288 | . 1113 13 1625 13 1598 2675 787 2162 . 2988 258 3078 608 234 . 264 962 9117 . 87 706 Guns 13289 | . 939 13 . 13 70 . . 100 . 1189 . 2546 608 234 . 264 962 5966 . 87 298 Cannons 8901 | . . . . . 779 2675 348 1455 . 558 258 . . . . . . 2736 . . 92 Explosions 3463 | . 174 . . . . . 439 607 . 1038 . 532 . . . . . 396 . . 277 Melee 2560 | . . . 1625 . 732 . . . . 203 . . . . . . . . . . . Ramming 75 | . . . . . 17 . . . . . . . . . . . . 19 . . 39 Kinetic 443 | . 269 . . 13 17 . . . . . . . . . . . . . . . 144 Thermal 19970 | . 670 13 . . 832 2675 348 1555 . 1747 258 2546 608 234 . 264 962 7017 . 87 154 Explosive 3320 | . 174 . . . . . 439 607 . 1038 . 532 . . . . . 253 . . 277 Electromagnetic 429 | . . . . . . . . . . . . . . . . . . 337 . . 92 Impact . | . . . . . . . . . . . . . . . . . . . . . . Slashing 2560 | . . . 1625 . 732 . . . . 203 . . . . . . . . . . . Piercing . | . . . . . . . . . . . . . . . . . . . . . . Entropic 1491 | . . . . . . . . . . . . . . . . . . 1491 . . . Highest Corruption 19 | . . . . . 4 1 . . . . . . 15 1 1 1 . 10 10 19 . Average Corruption 3 | . . . . . 3 1 . . . . . . 8 1 1 1 . 3 10 12 . Corruption Purged 15 | . . . . . . 2 . . . . . . . . . . . 13 . . . Corruption Blocked . | . . . . . . . . . . . . . . . . . . . . . . Effects 89 | . . . . . 13 16 . . . . . . 9 . 3 . . 37 8 3 . Message Errors 17 | . . . . . 1 4 . . . . . . 1 . . . . 9 2 . . Matter Fused 22 | . . . . . 4 7 . . . . . . 2 . 1 . . 5 . 3 . Heat Flow Errors 11 | . . . . . 3 . . . . . . . 3 . 1 . . 3 1 . . Energy Discharges 16 | . . . . . . 1 . . . . . . . . 1 . . 11 3 . . Parts Rejected 2 | . . . . . 1 . . . . . . . . . . . . 1 . . . Data Loss (minor) 10 | . . . . . 2 1 . . . . . . 2 . . . . 4 1 . . Data Loss (major) 3 | . . . . . . 1 . . . . . . . . . . . 1 1 . . Misfires 5 | . . . . . . 2 . . . . . . 1 . . . . 2 . . . Alerts 2 | . . . . . 2 . . . . . . . . . . . . . . . . Weapon Failures 1 | . . . . . . . . . . . . . . . . . . 1 . . . Overload Shots 22 | . . . . . . . . . . . . . . . . . 2 20 . . . Effects 1 | . . . . . . . . . . . . . . . . . . 1 . . . Short Circuit 1 | . . . . . . . . . . . . . . . . . . 1 . . . Overflow Damage 973 | . 18 . 149 . 210 7 93 131 . 30 15 62 . . . . . 160 . . 98 Projectiles 379 | . . . . . 10 7 72 131 . 22 15 . . . . . . 122 . . . Explosions 245 | . 18 . . . . . 21 . . 8 . 62 . . . . . 38 . . 98 Melee 349 | . . . 149 . 200 . . . . . . . . . . . . . . . . Knockbacks . | . . . . . . . . . . . . . . . . . . . . . . Impact . | . . . . . . . . . . . . . . . . . . . . . . Kinetic . | . . . . . . . . . . . . . . . . . . . . . . Secondary . | . . . . . . . . . . . . . . . . . . . . . . Self-Inflicted Damage 396 | . 48 . . . . . 53 . . 54 . 111 . . . . . 118 . . 12 Shots 10 | . 2 . . . . . 2 . . 2 . 2 . . . . . 2 . . . Rammed 20 | . . . . . 2 . . . . . . . . . . . . 7 . . 11 Targets Rammed 21 | . . . . . 2 . . . . . . . . . . . . 7 . . 12 Kicked 1 | . . . . . . . . . . . . . . . . . . . . . 1 Crushed . | . . . . . . . . . . . . . . . . . . . . . . Highest Temperature 470 | . 102 . . . 470 317 52 118 . 405 . 405 241 189 171 78 325 320 228 11 . Average Temperature 91 | . 37 . . . 127 79 14 32 . 97 . 126 97 75 91 40 73 103 120 6 . Received Heat Transfer 2914 | . 204 . . . 189 276 51 315 . 399 . 606 . 9 . 93 236 406 . 36 94 Effects 12 | . . . . . 3 . . . . 2 . 6 . . . . . 1 . . . Shutdowns 3 | . . . . . 1 . . . . 1 . 1 . . . . . . . . . Energy Bleed 4 | . . . . . . . . . . 1 . 2 . . . . . 1 . . . Interference 5 | . . . . . 2 . . . . . . 3 . . . . . . . . . Siege Activations 21 | . . . . . . . . . . . . . . . . . 2 19 . . . Total Turns 405 | . . . . . . . . . . . . . . . . . 44 361 . . . Longest Duration 88 | . . . . . . . . . . . . . . . . . 29 88 . . . Martial Activations . | . . . . . . . . . . . . . . . . . . . . . . Shielding Activations . | . . . . . . . . . . . . . . . . . . . . . . Robots Disrupted . | . . . . . . . . . . . . . . . . . . . . . . Combat Hostiles . | . . . . . . . . . . . . . . . . . . . . . . Robots Corrupted 2 | . . . . . . . . . . . . . . . . . . 2 . . . Combat Hostiles 2 | . . . . . . . . . . . . . . . . . . 2 . . . Parts Fried 5 | . . . . . . . . . . . . 1 . . . . . 4 . . . Impact Corruptions . | . . . . . . . . . . . . . . . . . . . . . . Robots Melted 11 | . . . . . . 2 . . . 5 1 3 . . . . . . . . . Combat Hostiles 11 | . . . . . . 2 . . . 5 1 3 . . . . . . . . . Parts Melted 78 | . 7 . . . . 9 1 3 . 10 5 22 2 2 . . 6 10 . . 1 Heat Transferred 28453 | . 1880 37 . . 1309 3885 481 2334 . 3505 400 5340 1277 259 . 222 1295 5637 . 259 333 Parts Sabotaged . | . . . . . . . . . . . . . . . . . . . . . . Parts Stolen . | . . . . . . . . . . . . . . . . . . . . . . Parts Stripped . | . . . . . . . . . . . . . . . . . . . . . . Power Chain Reactions 1 | . . . . . . . . . . . . . . . . . . 1 . . . Alert | -11 -10 -10 -10 -9 -8 -7 -7 -7 -7 -6 -6 -6 -6 -5 -5 -5 -4 -4 -4 -4 -3 ------- Run | Yrd Mat Min Exi Min Mat Fac Low Low Dat Pro Fac Ext Cet Fac Upp War Pro Fac Upp Upp Res Maximum Alert Level 3 | . . . . . 1 2 . . . . . 1 1 1 . . . 3 . . 1 Low Security (%) 66 | 100 100 100 . 100 75 12 . . . . 100 90 20 81 . . . 51 . . 94 Level 1 28 | . . . . . 24 87 . . . . . 9 79 18 . . . 25 . . 5 Level 2 2 | . . . . . . . . . . . . . . . . . . 14 . . . Level 3 1 | . . . . . . . . . . . . . . . . . . 9 . . . Level 4 . | . . . . . . . . . . . . . . . . . . . . . . Level 5 . | . . . . . . . . . . . . . . . . . . . . . . High Security . | . . . . . . . . . . . . . . . . . . . . . . Max Security . | . . . . . . . . . . . . . . . . . . . . . . Peak Influence 872 | . 145 16 . 126 280 400 . . . . 198 297 313 264 . . . 872 . . 216 Initial 216 | . . 16 . . . 116 . . . . 133 37 153 93 . . . 22 . . 216 Average 144 | . 51 . . 32 84 280 . . . . 136 65 233 111 . . . 245 . . 94 Influence Increases 8087 | . 489 5 10 136 503 899 130 405 . 822 123 929 360 443 . 939 100 1556 . 20 218 Destroy 0b10 Robot/C 4740 | . 300 . . 80 220 600 120 300 . 560 80 600 160 160 . 400 100 940 . 20 100 Destroy 0b10 Robot/NC 255 | . 25 5 10 . 40 25 . 5 . 15 5 25 10 . . 15 . 75 . . . Destroy Leader 638 | . 66 . . 10 66 142 10 30 . 10 10 44 . 40 . . . 210 . . . Allied During Kill 1025 | . . . . 31 . . . 10 . 12 . 213 170 200 . 389 . . . . . Successful Hack 136 | . 13 . . . 25 21 . . . . 17 14 . 16 . . . 5 . . 25 Select Force Hacks 120 | . 60 . . . 60 . . . . . . . . . . . . . . . . Disable Machine 285 | . . . . 15 15 75 . . . . . 15 15 15 . . . 105 . . 30 Destroy Structure 288 | . 10 . . . 17 21 . . . . 11 18 5 12 . . . 176 . . 18 Partial Spotted 15 | . . . . . . . . . . . . . . . . . . . . . 15 Lose Combat Pursuer 585 | . 15 . . . 60 15 . 60 . 225 . . . . . 135 . 45 . . 30 Influence Decreases 8075 | . 445 49 10 136 245 866 397 260 169 609 260 730 468 346 264 327 676 732 439 121 526 Entered New Map 1998 | . . 28 . . . 142 109 6 169 . 80 39 122 74 99 . 612 14 319 81 104 Time Decay 5062 | . 445 21 10 120 235 684 288 184 . 519 180 470 286 262 165 167 64 468 120 40 334 Lost Part 601 | . . . . . 10 40 . 70 . 50 . 93 . . . . . 250 . . 88 Lost Ally 414 | . . . . 16 . . . . . 40 . 128 60 10 . 160 . . . . . Squads Dispatched 42 | . 4 . . . 4 8 . 1 . . 1 1 . 1 . . . 14 . . 8 Investigation 7 | . 3 . . . 2 1 . . . . . . . . . . . . . . 1 Extermination 10 | . . . . . . 4 . . . . . . . 1 . . . 5 . . . Reinforcement 21 | . 1 . . . 2 3 . . . . 1 1 . . . . . 6 . . 7 Assault 4 | . . . . . . . . 1 . . . . . . . . . 3 . . . Garrison . | . . . . . . . . . . . . . . . . . . . . . . Intercept . | . . . . . . . . . . . . . . . . . . . . . . Searches Triggered . | . . . . . . . . . . . . . . . . . . . . . . Construction Impeded 2 | . . . . . 1 . . . . . . . . . . . . 1 . . . Haulers Reinforced 1 | . . . . . . 1 . . . . . . . . . . . . . . . Active Scanning Responses . | . . . . . . . . . . . . . . . . . . . . . . Cargo Convoy Interrupts 1 | . . . . . . . . . . . . . . . . . . . . . 1 Stealth | -11 -10 -10 -10 -9 -8 -7 -7 -7 -7 -6 -6 -6 -6 -5 -5 -5 -4 -4 -4 -4 -3 --------- Run | Yrd Mat Min Exi Min Mat Fac Low Low Dat Pro Fac Ext Cet Fac Upp War Pro Fac Upp Upp Res Distress Signals 17 | . 1 . . . 2 3 . . . 1 . 3 2 . . 2 . 1 . . 2 Communications Jammed 54 | . . . . . . . . . . . . . . . . . . 54 . . . Distress Signals 53 | . . . . . . . . . . . . . . . . . . 53 . . . Times Spotted 420 | . 28 . . 5 26 38 4 23 . 53 7 40 11 6 . 67 9 74 . 1 28 Peak Tracking Total 19 | . 4 . . 4 5 6 3 7 . 10 4 6 5 2 . 12 4 7 . 1 19 Tactical Retreats 26 | . 1 . . . 4 1 . 1 . 10 . . . . . 5 . 3 . . 1 Traps | -11 -10 -10 -10 -9 -8 -7 -7 -7 -7 -6 -6 -6 -6 -5 -5 -5 -4 -4 -4 -4 -3 ------- Run | Yrd Mat Min Exi Min Mat Fac Low Low Dat Pro Fac Ext Cet Fac Upp War Pro Fac Upp Upp Res Traps Triggered 13 | . 1 . . . 1 7 . . . . . 1 . . . . . 2 . . 1 Indirectly . | . . . . . . . . . . . . . . . . . . . . . . Trap Hack Attempts . | . . . . . . . . . . . . . . . . . . . . . . Triggered . | . . . . . . . . . . . . . . . . . . . . . . Disarmed . | . . . . . . . . . . . . . . . . . . . . . . Reprogrammed . | . . . . . . . . . . . . . . . . . . . . . . Reused . | . . . . . . . . . . . . . . . . . . . . . . Traps Extracted . | . . . . . . . . . . . . . . . . . . . . . . Installed . | . . . . . . . . . . . . . . . . . . . . . . Triggered . | . . . . . . . . . . . . . . . . . . . . . . Most Traps Carried 1 | . . . . . . . . 1 1 1 . . . . . . . . . . . Machines | -11 -10 -10 -10 -9 -8 -7 -7 -7 -7 -6 -6 -6 -6 -5 -5 -5 -4 -4 -4 -4 -3 ---------- Run | Yrd Mat Min Exi Min Mat Fac Low Low Dat Pro Fac Ext Cet Fac Upp War Pro Fac Upp Upp Res Machines Disabled 20 | . . . . 1 1 5 . . . 1 . 1 1 1 . . . 7 . . 2 Max in Single Turn 2 | . . . . . 1 1 . . . 1 . 1 1 1 . . . 2 . . 2 Garrison Access 1 | . . . . . . . . . . . . . . . . . . 1 . . . Machines Repaired . | . . . . . . . . . . . . . . . . . . . . . . Machines Dismantled 1 | . . . . . . . . . . . . . 1 . . . . . . . . Machines Sabotaged . | . . . . . . . . . . . . . . . . . . . . . . Overloaded Fab Kills . | . . . . . . . . . . . . . . . . . . . . . . Hacking | -11 -10 -10 -10 -9 -8 -7 -7 -7 -7 -6 -6 -6 -6 -5 -5 -5 -4 -4 -4 -4 -3 --------- Run | Yrd Mat Min Exi Min Mat Fac Low Low Dat Pro Fac Ext Cet Fac Upp War Pro Fac Upp Upp Res Machines Accessed 56 | . 5 1 3 . 5 6 . . 4 4 3 4 1 2 1 7 . 5 2 . 3 Terminals 25 | . 3 . . . 2 5 . . . 2 1 4 1 1 . . . 4 . . 2 Fabricators 1 | . . . . . . . . . . . . . . 1 . . . . . . . Repair Stations 1 | . . . . . . . . . . 1 . . . . . . . . . . . Recycling Units 5 | . 2 . . . 2 . . . . 1 . . . . . . . . . . . Scanalyzers 2 | . . . . . 1 . . . . . 1 . . . . . . . . . . Garrison Access 4 | . . . . . . 1 . . . . 1 . . . . . . 1 . . 1 Total Hacks 125 | . 7 1 4 . 8 11 . . 26 12 6 7 1 3 1 16 . 8 6 . 8 Successful 90 | . 5 1 4 . 5 4 . . 26 11 2 2 . 1 1 16 . 3 6 . 3 Failed 33 | . 1 . . . 3 7 . . . 1 3 5 1 2 . . . 5 . . 5 Catastrophic 10 | . 1 . . . . 2 . . . 1 1 1 1 1 . . . 1 . . 1 Database Lockouts 2 | . 1 . . . . . . . . . 1 . . . . . . . . . . Manual 39 | . 8 . 1 . 6 8 . . . . 2 2 1 2 . 1 . 3 . . 5 Terminals 52 | . 5 . . . 4 10 . . . 9 2 7 1 2 . . . 6 . . 6 Fabricators 1 | . . . . . . . . . . . . . . 1 . . . . . . . Repair Stations 2 | . . . . . . . . . . 2 . . . . . . . . . . . Recycling Units 5 | . 2 . . . 2 . . . . 1 . . . . . . . . . . . Scanalyzers 4 | . . . . . 2 . . . . . 2 . . . . . . . . . . Garrison Access 7 | . . . . . . 1 . . . . 2 . . . . . . 2 . . 2 Terminal Hacks 74 | . 3 1 4 . . 3 . . 26 9 . 2 . . 1 16 . 1 6 . 2 Record 42 | . . . 3 . . . . . 11 8 . . . . . 15 . . 5 . . Part Schematic 8 | . . . . . . . . . 8 . . . . . . . . . . . . Robot Schematic 4 | . . . . . . . . . 4 . . . . . . . . . . . . Robot Analysis 1 | . 1 . . . . . . . . . . . . . . . . . . . . Prototype ID Bank 3 | . . . . . . . . . 3 . . . . . . . . . . . . Open Door 5 | . . 1 . . . . . . . 1 . . . . 1 1 . . 1 . . Branch Access Points 4 | . 1 . . . . 1 . . . . . . . . . . . 1 . . 1 Recycling Unit Index 1 | . 1 . . . . . . . . . . . . . . . . . . . . Alert Level 1 | . . . . . . . . . . . . 1 . . . . . . . . . Hauler Manifests 1 | . . . . . . . . . . . . 1 . . . . . . . . . Zone Layout 3 | . . . . . . 2 . . . . . . . . . . . . . . 1 Proto ID Catalog 1 | . . . 1 . . . . . . . . . . . . . . . . . . Fabricator Hacks . | . . . . . . . . . . . . . . . . . . . . . . Repair Station Hacks 1 | . . . . . . . . . . 1 . . . . . . . . . . . Scan Component 1 | . . . . . . . . . . 1 . . . . . . . . . . . Recycling Unit Hacks 1 | . . . . . . . . . . 1 . . . . . . . . . . . Retrieve Components 1 | . . . . . . . . . . 1 . . . . . . . . . . . Scanalyzer 3 | . . . . . 2 . . . . . 1 . . . . . . . . . . Retrieve Study 3 | . . . . . 2 . . . . . 1 . . . . . . . . . . Garrison Access Hacks 1 | . . . . . . . . . . . . . . . . . . 1 . . . Seal Access 1 | . . . . . . . . . . . . . . . . . . 1 . . . Unauthorized Hacks 10 | . 2 . . . 3 1 . . . . 1 . . 1 . . . 1 . . 1 Terminals 6 | . . . . . 1 1 . . . . 1 . . 1 . . . 1 . . 1 Assimilate 1 | . . . . . . . . . . . . . . 1 . . . . . . . Botnet 5 | . . . . . 1 1 . . . . 1 . . . . . . 1 . . 1 Fabricators . | . . . . . . . . . . . . . . . . . . . . . . Repair Stations . | . . . . . . . . . . . . . . . . . . . . . . Recycling Units 4 | . 2 . . . 2 . . . . . . . . . . . . . . . . Tunnel 4 | . 2 . . . 2 . . . . . . . . . . . . . . . . Scanalyzers . | . . . . . . . . . . . . . . . . . . . . . . Garrison Access . | . . . . . . . . . . . . . . . . . . . . . . Data Cores Recovered 1 | . . . . . . . . . . . 1 . . . . . . . . . . Used . | . . . . . . . . . . . . . . . . . . . . . . Hacking Detections 29 | . 1 . . . 3 6 . . . 2 3 4 1 2 . . . 4 . . 3 Full Trace Events . | . . . . . . . . . . . . . . . . . . . . . . Feedback Events . | . . . . . . . . . . . . . . . . . . . . . . Feedback Blocked . | . . . . . . . . . . . . . . . . . . . . . . Robot Schematics Acquired 4 | . . . . . . . . . 4 . . . . . . . . . . . . Robots Built . | . . . . . . . . . . . . . . . . . . . . . . Authchips . | . . . . . . . . . . . . . . . . . . . . . . Time . | . . . . . . . . . . . . . . . . . . . . . . Total Robot Build Rating . | . . . . . . . . . . . . . . . . . . . . . . Part Schematics Acquired 8 | . . . . . . . . . 8 . . . . . . . . . . . . Parts Built . | . . . . . . . . . . . . . . . . . . . . . . Authchips . | . . . . . . . . . . . . . . . . . . . . . . Time . | . . . . . . . . . . . . . . . . . . . . . . Total Part Build Rating . | . . . . . . . . . . . . . . . . . . . . . . Part Studies Acquired 3 | . . . . . 2 . . . . . 1 . . . . . . . . . . Parts Repaired . | . . . . . . . . . . . . . . . . . . . . . . Time . | . . . . . . . . . . . . . . . . . . . . . . Parts Recycled . | . . . . . . . . . . . . . . . . . . . . . . Recycled Matter . | . . . . . . . . . . . . . . . . . . . . . . Retrieved Matter . | . . . . . . . . . . . . . . . . . . . . . . Retrieved Components 2 | . . . . . . . . . . 2 . . . . . . . . . . . Parts Scanalyzed . | . . . . . . . . . . . . . . . . . . . . . . Part Schematics Acquired . | . . . . . . . . . . . . . . . . . . . . . . Parts Damaged . | . . . . . . . . . . . . . . . . . . . . . . Bothacking | -11 -10 -10 -10 -9 -8 -7 -7 -7 -7 -6 -6 -6 -6 -5 -5 -5 -4 -4 -4 -4 -3 ------------ Run | Yrd Mat Min Exi Min Mat Fac Low Low Dat Pro Fac Ext Cet Fac Upp War Pro Fac Upp Upp Res Used RIF Installer . | . . . . . . . . . . . . . . . . . . . . . . Robots Hacked . | . . . . . . . . . . . . . . . . . . . . . . Non-combat . | . . . . . . . . . . . . . . . . . . . . . . Combat . | . . . . . . . . . . . . . . . . . . . . . . Robot Hacks Applied . | . . . . . . . . . . . . . . . . . . . . . . Relay Couplers Released . | . . . . . . . . . . . . . . . . . . . . . . Fabnet Peak Effective % . | . . . . . . . . . . . . . . . . . . . . . . Robots Rewired 23 | . . . 3 . . . . 2 . . . 18 . . . . . . . . . Allies Hacked . | . . . . . . . . . . . . . . . . . . . . . . Hacks Repelled . | . . . . . . . . . . . . . . . . . . . . . . Allies | -11 -10 -10 -10 -9 -8 -7 -7 -7 -7 -6 -6 -6 -6 -5 -5 -5 -4 -4 -4 -4 -3 -------- Run | Yrd Mat Min Exi Min Mat Fac Low Low Dat Pro Fac Ext Cet Fac Upp War Pro Fac Upp Upp Res Total Allies 44 | . . 1 3 3 . . . 2 . 1 . 29 5 . . . . . . . . Largest Group 20 | . . 1 3 6 . . . 2 2 2 . 19 20 13 10 10 . . . . . Highest-Rated Group 1006 | . . 31 50 90 . . . 46 46 46 . 684 1006 704 497 503 . . . . . Highest-Rated Ally 159 | . . 31 21 21 . . . 30 30 30 . 159 159 150 96 96 . . . . . Total Orders 3 | . . . . . . . . . . . . 2 . . . 1 . . . . . STAY 1 | . . . . . . . . . . . . 1 . . . . . . . . . FOLLOW 1 | . . . . . . . . . . . . 1 . . . . . . . . . GUARD 1 | . . . . . . . . . . . . . . . . 1 . . . . . Ally Attacks 402 | . . . . 13 . . . 6 . 8 . 120 63 41 . 151 . . . . . Total Damage 8522 | . . . . 228 . . . 82 . 153 . 2273 1238 1044 . 3504 . . . . . Kills 60 | . . . . 6 . . . 2 . 2 . 9 8 7 . 26 . . . . . Allies Corrupted . | . . . . . . . . . . . . . . . . . . . . . . Allies Melted 1 | . . . . . . . . . . 1 . . . . . . . . . . . Intel | -11 -10 -10 -10 -9 -8 -7 -7 -7 -7 -6 -6 -6 -6 -5 -5 -5 -4 -4 -4 -4 -3 ------- Run | Yrd Mat Min Exi Min Mat Fac Low Low Dat Pro Fac Ext Cet Fac Upp War Pro Fac Upp Upp Res Active Infowar (turns) 19569 | . . . . . . 2359 1886 2770 175 4511 374 1084 . 395 430 1442 922 2979 . . 242 Optics 4833 | . . . . . . 849 . . . . . . . . . 525 922 2537 . . . Sensors 17312 | . . . . . . 1507 1886 2770 175 4510 374 983 . 395 430 1179 842 2261 . . . Traps 4814 | . . . . . . 538 . . . . . 1032 . 166 430 476 . 1930 . . 242 Spoofing 1 | . . . . . . . . . . 1 . . . . . . . . . . . Jamming 529 | . . . . . . . . . . . . . . . . . 13 516 . . . Robot Analysis Total 1 | . 1 . . . . . . . . . . . . . . . . . . . . Derelict Logs Recovered 12 | . . 3 . . . . 2 2 . 3 . . . . 1 . 1 . . . . Drone Launches 9 | . . . . . . . . . . . . 9 . . . . . . . . . Drone Recoveries 6 | . . . . . . . . . . . . 6 . . . . . . . . . Exploration | -11 -10 -10 -10 -9 -8 -7 -7 -7 -7 -6 -6 -6 -6 -5 -5 -5 -4 -4 -4 -4 -3 ------------- Run | Yrd Mat Min Exi Min Mat Fac Low Low Dat Pro Fac Ext Cet Fac Upp War Pro Fac Upp Upp Res Turns Passed 31053 | 64 1604 1423 2086 546 1204 2732 1925 3131 175 5172 374 2222 624 568 430 1618 922 3096 257 88 792 Spaces Moved 12815 | 36 517 442 634 222 431 1056 813 1188 82 2120 153 751 283 314 260 895 475 1237 433 91 382 Core 750 | 11 . . . . . . . . . . . . 1 . . . . 57 433 91 157 Treads 11794 | 25 517 442 634 222 431 1056 813 1188 82 2120 153 705 282 314 260 895 475 1180 . . . Legs 221 | . . . . . . . . . . . . 46 . . . . . . . . 175 Wheels . | . . . . . . . . . . . . . . . . . . . . . . Hover . | . . . . . . . . . . . . . . . . . . . . . . Flight 50 | . . . . . . . . . . . . . . . . . . . . . 50 Fastest Speed 34 | 50 160 320 240 240 160 200 229 216 216 200 208 200 160 160 160 160 160 50 50 50 34 Average Speed 207 | 151 263 320 316 240 233 216 229 251 216 223 214 225 189 160 160 160 160 159 50 50 84 Slowest Speed 2550 | 200 320 320 320 240 240 280 229 269 216 269 216 540 2550 160 160 160 160 240 50 50 250 Overloaded Moves . | . . . . . . . . . . . . . . . . . . . . . . Propulsion Burnouts . | . . . . . . . . . . . . . . . . . . . . . . Robots Hopped . | . . . . . . . . . . . . . . . . . . . . . . Potential Cave-ins 4 | . . . . . . 2 . . . . . . . . . . . 2 . . . Cave-ins Triggered . | . . . . . . . . . . . . . . . . . . . . . . Exploration Rate (%) 56 | 4 96 88 93 51 50 36 88 98 70 95 5 82 72 10 28 85 68 36 67 11 13 Regions Visited 21 Branch Regions 14 Pre-discovered Areas 11 | . 2 1 1 . 2 . . . 1 2 . . . . . 1 . . 1 . . Known Exits Taken 13 | . 1 . . . . 1 1 1 1 1 1 . . 1 1 1 1 1 . 1 . Unknown Exits Taken 8 | 1 . 1 1 1 1 . . . . . . 1 1 . . . . . 1 . . Scrap Searched 11 | . . 1 . . . . 4 2 . 3 . . . . . . . . . 1 . Spaces Dug 104 | . . . . . 3 24 1 . . 11 8 . . . . . 12 45 . . . Terrain Destroyed 472 | . 10 . . . 16 27 80 34 . 121 13 24 . 2 . 1 19 116 . . 9 Melee 4 | . . . . . 3 1 . . . . . . . . . . . . . . . Projectile 221 | . . . . . 13 26 3 5 . 31 13 . . 2 . 1 19 108 . . . AOE 247 | . 10 . . . . . 77 29 . 90 . 24 . . . . . 8 . . 9 Terrain Rammed . | . . . . . . . . . . . . . . . . . . . . . . Walls Destroyed . | . . . . . . . . . . . . . . . . . . . . . . Machines Disabled . | . . . . . . . . . . . . . . . . . . . . . . Actions | -11 -10 -10 -10 -9 -8 -7 -7 -7 -7 -6 -6 -6 -6 -5 -5 -5 -4 -4 -4 -4 -3 --------- Run | Yrd Mat Min Exi Min Mat Fac Low Low Dat Pro Fac Ext Cet Fac Upp War Pro Fac Upp Upp Res Total 16020 | 43 643 448 695 235 553 1360 843 1266 81 2415 177 1170 366 365 275 1074 583 2014 472 127 815 Wait 1467 | . 39 . . 9 22 122 2 17 . 89 . 87 16 21 14 114 75 401 39 25 375 Move 12795 | 35 516 441 633 221 430 1055 812 1187 81 2119 152 750 282 313 259 894 474 1237 432 90 382 Hop . | . . . . . . . . . . . . . . . . . . . . . . Pick Up 167 | 2 15 1 6 . 18 24 1 4 . 21 1 30 10 4 . 8 . 20 . . 2 Fast Attach 100 | 6 1 2 . . 5 19 . 2 . 13 . 12 6 3 . 14 . 2 1 1 13 Attach 81 | . . . . 3 6 10 . 4 . 4 2 19 3 1 . 2 1 22 . 1 3 Detach 17 | . . 1 . . 1 3 . . . . . 2 1 . . 6 . 1 . 2 . Swap 234 | . 7 . 2 1 15 23 9 7 . 42 1 24 5 10 1 5 10 71 . 1 . Drop 185 | . 5 1 1 . 9 32 1 . . 37 . 30 20 7 1 23 . 16 . 1 1 Fire 691 | . 60 2 . 1 25 71 18 31 . 87 21 53 15 6 . 7 23 238 . 6 27 Melee 45 | . . . 21 . 20 1 . . . 3 . . . . . . . . . . . Ram 17 | . . . . . . . . . . . . . . . . . . 6 . . 11 Kick 1 | . . . . . . . . . . . . . . . . . . . . . 1 Crush 2 | . . . . . 2 . . . . . . . . . . . . . . . . Escape Stasis . | . . . . . . . . . . . . . . . . . . . . . . Rewire 210 | . . . 32 . . . . 14 . . . 163 . . . 1 . . . . . Trap . | . . . . . . . . . . . . . . . . . . . . . . Miscellaneous 8 | . . . . . . . . . . . . . 8 . . . . . . . . Route ------- -11/Scrapyard -10/Materials (discovered 6 exits: [*Mat x3] / *Min x2 / [*Sub]) -10/Mines (discovered 3 exits: [*Mat x2] / *Exi) -10/Exiles -9/Mines -8/Materials (discovered 2 exits: *Fac x2) -7/Factory (discovered 4 exits: *Fac x2 / *Low x2) -7/Lower Caves -7/Lower Caves (discovered 2 exits: *Fac / *Dat) -7/Data Miner -6/Proximity Caves -6/Factory -6/Extension (discovered 2 exits: *Fac / *Cet) -6/Cetus (discovered 2 exits: *Fac / [*Arc]) -5/Factory -5/Upper Caves -5/Warlord -4/Proximity Caves -4/Factory (discovered 3 exits: *Res / *Upp x2) -4/Upper Caves -4/Upper Caves -3/Research (discovered 4 exits: Res / Arm / Tes x2) History --------- Turn | Location | Event 16 | -11/Scrapyard | Discovered new exit (range 16) 65 | -11/Scrapyard | Entered Materials 65 | -10/Materials | Discovered new exit (range 7) 313 | -10/Materials | Build established: Mutant 350 | -10/Materials | Discovered new exit (range 14) 443 | -10/Materials | Central database locked down 822 | -10/Materials | Discovered new exit (range 6) 1033 | -10/Materials | Identified exit to Mines 1083 | -10/Materials | Discovered new exit (range 10) 1406 | -10/Materials | Discovered new exit (range 13) 1669 | -10/Materials | Entered Mines 1766 | -10/Mines | Found the Drone Emporium 1782 | -10/Mines | Found Prototype Device 1782 | -10/Mines | Identified Thief Drone Bay 1852 | -10/Mines | Discovered new exit (range 11) 1929 | -10/Mines | Learned Materials security intel 2093 | -10/Mines | Received a Rocket Launcher from a helpful Derelict 2148 | -10/Mines | Found a hidden stash of uninstalled traps 2359 | -10/Mines | Received a Mining Laser from a helpful Derelict 2404 | -10/Mines | Deemed a non-threat by the Exiles lab entrance 2404 | -10/Mines | Discovered new exit (range 5) 2576 | -10/Mines | Discovered new exit (range 12) 2589 | -10/Mines | Learned Materials interactive machine intel 2688 | -10/Mines | Found a Scrap Suit stashed away for nefarious purposes 3092 | -10/Mines | Entered Exiles 3092 | -10/Exiles | Found Exiles lab destroyed 3446 | -10/Exiles | Opened EX-Vault 3462 | -10/Exiles | Found PSU Rigger 3725 | -10/Exiles | Learned location of Zion (-6) 5149 | -10/Exiles | Discovered new exit (range 14) 5178 | -10/Exiles | Entered Mines 5178 | -9/Mines | Accompanied by 3 allies 5195 | -9/Mines | Assisted by bots powering up and referring to "LRC-V3" 5517 | -9/Mines | Build established: Commander-Mutant 5546 | -9/Mines | Destroyed YI-UF0 5573 | -9/Mines | Lost 5 allies 5575 | -9/Mines | Lost 3 parts (1p1n1w) 5622 | -9/Mines | Discovered new exit (range 8) 5724 | -9/Mines | Entered Materials 5724 | -8/Materials | Evolved 4 slots: Propulsion x1, Utility x2, Weapon x1 5726 | -8/Materials | Loaded intel: 19 interactive machine locations 6276 | -8/Materials | Discovered new exit (range 15) 6904 | -8/Materials | Discovered new exit (range 13) 6928 | -8/Materials | Entered Factory 6928 | -7/Factory | Evolved 2 slots: Power x1, Utility x1 7227 | -7/Factory | Build established: Scavenger-Gunner 8103 | -7/Factory | Discovered new exit (range 4) 8116 | -7/Factory | Identified exit to Factory 8185 | -7/Factory | Identified exit to Lower Caves 8337 | -7/Factory | Build established: Skirmisher 9308 | -7/Factory | Discovered exit to Factory (range 7) 9660 | -7/Factory | Entered Lower Caves 9718 | -7/Lower Caves | Learned Factory emergency access door positions 10854 | -7/Lower Caves | Learned Factory non-interactive machine intel 11349 | -7/Lower Caves | Attracted the attention of an 0b10 checkpoint 11520 | -7/Lower Caves | Discovered new exit (range 6) 11581 | -7/Lower Caves | Identified exit to Lower Caves 11585 | -7/Lower Caves | Entered another Lower Caves area 11685 | -7/Lower Caves | Discovered exit to Factory (range 10) 12749 | -7/Lower Caves | Learned Factory emergency access door positions 13022 | -7/Lower Caves | Learned Factory garrison access intel 13337 | -7/Lower Caves | Encountered a Warlord checkpoint 13779 | -7/Lower Caves | Attracted the attention of an 0b10 outpost 13835 | -7/Lower Caves | Lost 5 parts (2p1n1u1w) 14227 | -7/Lower Caves | Discovered new exit (range 13) 14255 | -7/Lower Caves | Identified exit to Data Miner 14716 | -7/Lower Caves | Entered Data Miner 14716 | -7/Data Miner | Accompanied by 2 allies 14716 | -7/Data Miner | Discovered new exit (range 6) 14758 | -7/Data Miner | Met Data Miner 14807 | -7/Data Miner | Learned location of Section 7 (-2) 14807 | -7/Data Miner | Acquired the access code to Warlord's prototype stash 14842 | -7/Data Miner | Received God Mode back door access code from Data Miner 14889 | -7/Data Miner | Identified exit to Proximity Caves 14891 | -7/Data Miner | Entered Proximity Caves 14891 | -6/Proximity Caves | Accompanied by 2 allies 14894 | -6/Proximity Caves | Greeted by an Infiltrator in a former 0b10 base 15050 | -6/Proximity Caves | Former 0b10 base attacked by MAIN.C 15327 | -6/Proximity Caves | Lost 4 allies 15381 | -6/Proximity Caves | Lost 3 allies 15391 | -6/Proximity Caves | 0b10 base defense nominally successful 15466 | -6/Proximity Caves | Lost 5 allies 15528 | -6/Proximity Caves | Lost 4 parts (1p1n1u1w) 15593 | -6/Proximity Caves | Lost 4 allies 16327 | -6/Proximity Caves | Build established: Scavenger-Skirmisher 16716 | -6/Proximity Caves | Attracted the attention of an 0b10 checkpoint 16947 | -6/Proximity Caves | Learned location of Extension (-6) 17091 | -6/Proximity Caves | Found Imp. Powered Armor 17137 | -6/Proximity Caves | Learned 4 Factory zone layouts 17930 | -6/Proximity Caves | Discovered exit to Factory (range 10) 19353 | -6/Proximity Caves | Attracted the attention of an 0b10 base 19459 | -6/Proximity Caves | Learned 8 Research zone layouts 19459 | -6/Proximity Caves | Learned Research trap positions 19459 | -6/Proximity Caves | Learned Research garrison access intel 20063 | -6/Proximity Caves | Entered Factory 20063 | -6/Factory | Evolved 2 slots: Propulsion x1, Utility x1 20064 | -6/Factory | Identified exit to Extension 20066 | -6/Factory | Loaded intel: 230 non-interactive machine locations 20067 | -6/Factory | Loaded intel: 4 garrison access locations 20091 | -6/Factory | Central database locked down 20437 | -6/Factory | Entered Extension 20558 | -6/Extension | Rescued a captive Derelict 20559 | -6/Extension | Rescued a captive Derelict 20651 | -6/Extension | Lost 15 parts (2p7n1u5w) 20903 | -6/Extension | Rescued a captive Derelict 21243 | -6/Extension | Rescued a captive Derelict 21736 | -6/Extension | Spotted B-75 Beast 21748 | -6/Extension | Destroyed B-75 Beast 21776 | -6/Extension | Destroyed B-75 Beast 21808 | -6/Extension | Lost 4 allies 21820 | -6/Extension | Lost 6 parts (2p1n2u1w) 21915 | -6/Extension | Rescued a captive Derelict 21917 | -6/Extension | Rescued a captive Derelict 21948 | -6/Extension | Rescued A7 22055 | -6/Extension | Build established: Scavenger-Tank 22121 | -6/Extension | Rescued a captive Derelict 22122 | -6/Extension | Rescued a captive Derelict 22387 | -6/Extension | Rescued a captive Derelict 22388 | -6/Extension | Rescued a captive Derelict 22600 | -6/Extension | Discovered new exit (range 10) 22602 | -6/Extension | Discovered new exit (range 6) 22659 | -6/Extension | Entered Cetus 22659 | -6/Cetus | Accompanied by 17 allies (A7) 22664 | -6/Cetus | Acquired a Cetus Manufacturing Module code from A7 22684 | -6/Cetus | Spotted Cetus Guard 22685 | -6/Cetus | Spotted Cetus Guard 22694 | -6/Cetus | Spotted Cetus Guard 22698 | -6/Cetus | Allies destroyed Cetus Guard 22700 | -6/Cetus | Allies destroyed Cetus Guard 22711 | -6/Cetus | Allies destroyed Cetus Guard 22798 | -6/Cetus | Started Cetus Manufacturing Module 22823 | -6/Cetus | Manufactured an Enhanced Grunt 22833 | -6/Cetus | Escorted A7 to Cetus Mainframe 22848 | -6/Cetus | Manufactured an Enhanced Grunt 22863 | -6/Cetus | Discovered new exit (range 16) 22873 | -6/Cetus | Manufactured an Enhanced Grunt 22898 | -6/Cetus | Manufactured an Enhanced Grunt 22905 | -6/Cetus | Spotted Cetus Guard 22905 | -6/Cetus | Spotted Cetus Guard 22909 | -6/Cetus | Spotted Cetus Guard 22915 | -6/Cetus | Destroyed Cetus Guard 22917 | -6/Cetus | Allies destroyed Cetus Guard 22918 | -6/Cetus | Spotted Cetus Guard 22923 | -6/Cetus | Manufactured an Enhanced Grunt 22923 | -6/Cetus | Allies destroyed Cetus Guard 22933 | -6/Cetus | Destroyed Cetus Guard 22938 | -6/Cetus | Build established: Commander-Tank 22952 | -6/Cetus | Discovered new exit (range 16) 22956 | -6/Cetus | Lost 3 allies 22965 | -6/Cetus | Met Revision 17 23269 | -6/Cetus | System corruption reached 10% 23283 | -6/Cetus | Entered Factory 23283 | -5/Factory | Accompanied by 13 allies (A7) 23283 | -5/Factory | Evolved 2 slots: Propulsion x2 23288 | -5/Factory | Received a hacking code to weaken MAIN.C 23570 | -5/Factory | Build established: Scavenger-Tank 23796 | -5/Factory | Discovered new exit (range 9) 23828 | -5/Factory | Identified exit to Upper Caves 23851 | -5/Factory | Entered Upper Caves 23851 | -5/Upper Caves | Accompanied by 10 allies 23854 | -5/Upper Caves | A Derelict revealed a hidden shortcut to "reach the base" 23856 | -5/Upper Caves | Encountered a Warlord checkpoint 23866 | -5/Upper Caves | Learned Factory stockpile data 23879 | -5/Upper Caves | Identified exit to Warlord 24071 | -5/Upper Caves | Build established: Commander-Tank 24281 | -5/Upper Caves | Entered Warlord 24281 | -5/Warlord | Accompanied by 10 allies 24336 | -5/Warlord | System corruption cleaned by Quarantine Array 24734 | -5/Warlord | Learned Armory security intel 24734 | -5/Warlord | Learned Armory recycling unit intel 24736 | -5/Warlord | Learned 4 Armory zone layouts 24736 | -5/Warlord | Learned 4 Armory zone layouts 24753 | -5/Warlord | Opened Warlord's prototype stash 24765 | -5/Warlord | Found Prototype Reactor 24773 | -5/Warlord | Found Prototype Device 24773 | -5/Warlord | Identified Exp. Focal Shield 24782 | -5/Warlord | Found Prototype Processor 24782 | -5/Warlord | Identified Exp. Armor Integrity Analyzer 24912 | -5/Warlord | Met Warlord 24937 | -5/Warlord | Warlord's base attacked by MAIN.C 25079 | -5/Warlord | Found Prototype Launcher 25079 | -5/Warlord | Identified Vortex Catalyst Activator 25095 | -5/Warlord | Found Prototype Energy Cannon 25095 | -5/Warlord | Identified Vortex Cannon 25228 | -5/Warlord | Found Prototype Device 25228 | -5/Warlord | Identified Exp. Thermal Shield 25251 | -5/Warlord | Lost 3 allies 25261 | -5/Warlord | Identified Vortex Chain Reactor 25287 | -5/Warlord | Warlord forces counterattacked 25331 | -5/Warlord | Spotted Executioner 25389 | -5/Warlord | Lost 16 allies 25476 | -5/Warlord | Spotted Striker 25492 | -5/Warlord | Lost 9 allies 25510 | -5/Warlord | Spotted Striker 25583 | -5/Warlord | Lost 10 allies 25590 | -5/Warlord | Build established: Scavenger-Tank 25612 | -5/Warlord | Warlord base infiltrated, sounded retreat 25883 | -5/Warlord | Discovered new exit (range 12) 25897 | -5/Warlord | Identified exit to Proximity Caves 25899 | -5/Warlord | Entered Proximity Caves 26023 | -4/Proximity Caves | Spotted B-86 Titan 26221 | -4/Proximity Caves | Learned Research garrison access intel 26394 | -4/Proximity Caves | Build established: Scavenger-Skirmisher 26733 | -4/Proximity Caves | Attracted the attention of an 0b10 checkpoint 26802 | -4/Proximity Caves | Discovered new exit (range 5) 26808 | -4/Proximity Caves | Identified exit to Factory 26821 | -4/Proximity Caves | Entered Factory 26821 | -4/Factory | Evolved 2 slots: Utility x2 27034 | -4/Factory | Identified exit to Upper Caves 27068 | -4/Factory | Build established: Scavenger-Tank 27405 | -4/Factory | Build established: Scavenger-Skirmisher 27630 | -4/Factory | Found Quantum Capacitor 28143 | -4/Factory | Build established: Scavenger-Tank 28231 | -4/Factory | Discovered new exit (range 11) 28250 | -4/Factory | Identified exit to Research 29321 | -4/Factory | First assault squad dispatched 29491 | -4/Factory | Lost 8 parts (1p3n3u1w) 29665 | -4/Factory | Destroyed 8 combat bots 29881 | -4/Factory | Released all parts (5) 29884 | -4/Factory | Core integrity fell below 50% 29908 | -4/Factory | System corruption reached 10% 29911 | -4/Factory | Lost 7 parts (2p1n3u1w) 29917 | -4/Factory | Core integrity fell below 20% 29917 | -4/Factory | Entered Upper Caves 30012 | -4/Upper Caves | Entered an active Warlord outpost 30017 | -4/Upper Caves | Learned Research terminal intel 30017 | -4/Upper Caves | Learned 8 Factory zone layouts 30131 | -4/Upper Caves | Discovered new exit (range 15) 30135 | -4/Upper Caves | Build established: Mutant 30174 | -4/Upper Caves | Entered another Upper Caves area 30259 | -4/Upper Caves | Discovered exit to Research (range 7) 30262 | -4/Upper Caves | Entered Research 30262 | -3/Research | Evolved 2 slots: Power x1, Weapon x1 30263 | -3/Research | Identified exit to Research 30263 | -3/Research | Identified exit to Armory 30264 | -3/Research | Loaded intel: 69 trap records 30265 | -3/Research | Loaded intel: 24 terminal locations 30266 | -3/Research | Loaded intel: 4 garrison access locations 30699 | -3/Research | Revision forces began assault on 0b10 30700 | -3/Research | Met up with Revision 17++ 30715 | -3/Research | Lost 4 parts (1p1u2w) 30753 | -3/Research | Cargo convoy interrupted 30794 | -3/Research | Identified exit to Testing 30935 | -3/Research | Spotted Striker 30990 | -3/Research | Lost 5 allies 30992 | -3/Research | Build established: Scavenger-Mutant 30996 | -3/Research | Released all parts (7) 31019 | -3/Research | Core integrity fell below 50% 31040 | -3/Research | Core integrity fell below 20% 31054 | -3/Research | Destroyed by S-43 Plague with Heavy Machine Gun Last Messages --------------- 31025_ An alarm sounds. 31025_ ALERT: Alarm triggered, dispatching investigation squad. 31026_ Slammed into W-44 Eye. 31032_ L-61 Swordsman suffers critical hit (Burn). 31034_ K-01 Serf cleans the Antiparticle Reservoir. 31035_ K-01 Serf destroyed. 31037_ ALERT: Suspicious intruders detected, dispatching Specialist reinforcements to area. 31038_ Critical hit (Burn: +37). 31038_ K-01 Serf collects debris. 31039_ Critical hit (Burn: +50). 31048_ ALERT: Hostile activity reported, dispatching reinforcements to area. 31051_ Acquired Antigrav System. 31053_ Slammed into S-43 Plague. 31053_ Antigrav System destroyed. 31054_ Slammed into S-43 Plague. Map ----- +----------------------------------------------------+ | ?????????????????????????????????????????????????? | | ?????????????????????????????????????????????????? | | ?????????????????????????????????????????????????? | | ?????????????????????????????????????????????????? | | ?????????????????????????????????????????????????? | | ?????????????????????????????????????????????????? | | ?????????????????????????????????????????????????? | | ?????????????????????????????????????????????????? | | ?????????????????????????????????????????????????? | | ?????????????????????????????????????????????????? | | ?????????????????????????????????????????????????? | | ?????????????????????????????????????????????????? | | ?????????????????????????????????????????????????? | | ?????????????????????????????????????????????????? | | ?????????????????????????????????????????????????? | | ?????????????????????????????????????????????????? | | ?????????????????????##########??????????????????? | | ?????????????????????# #??????????????????? | | ?????????????????????# ! #??????????????????? | | ?????????????????????# #??????????????????? | | ?????????????????????# #??????????????????? | | ?????????????????????# ] = #??????????????????? | | ?????????????????????# s #??????????????????? | | ?????????????????????# #??????????????????? | | ?????????????????????# ssss #??????????????????? | | ?????????????????????# s@s #??????????????????? | | ?????????????????????#####s#############+#???????? | | ##################????# ???????? | | /% #????# ??????? | | ##### #????# ??????? | | ????# """"#????# ??????? | | ????# """"#????# ########## #???????? | | ????# """"#????# #?????????????????????? | | ????# %""""#????# #?????????????????????? | | ????# ###### +?????????????????????? | | ????# / #?????????????????????? | | ????# ###### #?????????????????????? | | ????# #????# #?????????????????????? | | ????# #????# #???? # #???????? | | ????# #????# #????+#### #????#### | | ????#####+#+######????# #???? #### ######T # | | ??????????????????????# ???? | | ??????????????????????# ??? | | ??????????????????????# ?? | | ??????????????????????# ? | | ??????????????????????# ################# ## | | ??????????????????????# #??????# # # | | ??????????????????????# #????### # # | | ??????????????????????? ???? + + + | | ??????????????????????? ????? # # # | +----------------------------------------------------+ Best States ------------- Heat Dissipation 112 Energy Generation 70 Energy Capacity 700 Matter Stores 300 Matter Capacity 300 Sight Range 23 Robot Scan Range 19 Terrain Scan Density 10 Jamming Range 16 Power Amplification 30 Armor Coverage 550 Resistance: KI 30 Resistance: TH 30 Weapon Shielding 33 Phase Shifting 10 Evasion (%) 65 Targeting Accuracy 8 Armor Integrity Analysis 50 Recoil Reduction 6 Particle Charging 20 Offensive Hacking 14 Item Schematics ----------------- Combat Drone Bay | -7/Data Miner | Free Lgt. Regenerative Plating | -7/Data Miner | Free Cld. Cesium-ion Thruster | -7/Data Miner | Free Thermal Defense Suite | -7/Data Miner | Free Imp. Lightning Gun | -7/Data Miner | Free Antigrav System | -7/Data Miner | Free Adv. Recoil Stabilizer | -7/Data Miner | Free Adv. Plasma Cannon | -7/Data Miner | Free Robot Schematics ------------------ H-66 Slayer | -7/Data Miner | Free W-25 Informer | -7/Data Miner | Free G-47 Trooper | -7/Data Miner | Free A-15 Conveyor | -7/Data Miner | Free Fabricated ------------ Nothing Repaired ---------- Nothing Studied --------- Lgt. Treads | -8/Materials | Hacked Particle Gun | -8/Materials | Hacked Hvy. Laser | -6/Factory | Hacked Alien Tech Used ----------------- None Achievements -------------- None Challenges ------------ None Game ------ Seed ChromaticCobblerReactor Manual? 0 Play Time 03:46:44 Cumulative 310.2 hours Start 2026.08.30 @ 18:48:04 End 2026.08.31 @ 03:51:18 Sessions 3 Manual Loads 0 Difficulty Rogue Special Mode None Game No. 294 Rogue 240 Adventurer 54 Explorer 0 Win Type - Total 12 Types 8/0/1/1/0/0/0/1/0/1 Lore% 78 Gallery% 67 Achievement% 61 Wizard Run 0 Options --------- Layout 1 ASCII 0 Keyboard 0 Movement Mouse Keybinds 1 Fullscreen 2 Font 32/Tamsyn Map View 50x35 Zoom Use 0% Tactical HUD 1 Map Filters NONE Filters NONE Steam 1 RUN: f0583116-d7c8-44d1-add0-ef65f1471121